bitfinex/quotes_SOLUSD_20240628
["timestamp","ask_amount","ask_price","bid_price","bid_amount"]
[1719536135072,22.2052,147.82,147.77,6.7672]
[1719536135696,15.44,147.82,147.77,6.7672]
[1719536135872,15.44,147.82,147.78,6.7668]
[1719536136274,15.44,147.82,147.77,6.7671]
[1719536136574,22.2046,147.83,147.77,22.2071]
[1719536137466,6.7665,147.79,147.74,22.9733]
[1719536137667,275.7074,147.86,147.77,15.44]
[1719536137901,270.4787,147.86,147.8,6.7658]
[1719536138104,15.44,147.85,147.79,22.2062]
[1719536138266,22.2037,147.85,147.79,22.2062]
[1719536138580,6.7641,147.84,147.79,22.2062]
[1719536139215,6.7647,147.83,147.78,39.1232]
[1719536139502,22.2047,147.83,147.78,23.6832]
[1719536140488,22.2041,147.84,147.78,39.1232]
[1719536141189,6.7641,147.84,147.78,39.1232]
[1719536141399,22.2041,147.84,147.78,39.1232]
[1719536143404,6.7641,147.84,147.78,39.1232]
[1719536143577,22.2041,147.84,147.78,39.1232]
[1719536144004,6.7641,147.84,147.79,6.7662]
[1719536144202,6.7641,147.84,147.79,22.2062]
[1719536148404,6.7637,147.85,147.79,22.2062]
[1719536148704,22.2037,147.85,147.79,22.2062]
[1719536149078,6.7637,147.85,147.79,22.2062]
[1719536149297,22.2037,147.85,147.79,22.2062]
[1719536149493,38.0819,147.86,147.8,22.2057]
[1719536149996,6.7637,147.85,147.8,22.2057]
[1719536151581,16.9084,147.86,147.75,16.92]
[1719536151782,6.7666,147.79,147.75,15.44]
[1719536152105,6.7666,147.79,147.74,31.6451]
[1719536152296,6.7666,147.79,147.74,38.4137]
[1719536152494,6.7666,147.79,147.74,22.9737]
[1719536152800,6.7666,147.79,147.74,38.4137]
[1719536153500,22.2059,147.8,147.74,38.4137]
[1719536153693,22.2059,147.8,147.75,15.44]
[1719536153895,22.2059,147.8,147.75,22.2081]
[1719536156106,15.44,147.8,147.75,22.2081]
[1719536156313,22.2055,147.81,147.75,22.2081]
[1719536156698,22.2055,147.81,147.76,6.7676]
[1719536157004,22.2055,147.81,147.75,22.208]
[1719536157913,6.7655,147.81,147.76,15.44]
[1719536158116,6.7655,147.81,147.76,22.2075]
[1719536158615,22.2051,147.82,147.76,22.2075]
[1719536159016,6.7651,147.82,147.77,15.44]
[1719536160114,6.7651,147.82,147.78,16.72582426]
[1719536160315,6.7645,147.83,147.78,22.2066]
[1719536160504,6.7645,147.83,147.79,15.44]
[1719536161196,15.6144,147.84,147.79,15.44]
[1719536161598,17.1272656,147.88,147.79,15.44]
[1719536162017,15.44,147.85,147.79,15.44]
[1719536162316,6.7648,147.83,147.79,15.44]
[1719536162618,6.765,147.82,147.79,15.44]
[1719536163197,6.765,147.82,147.76,6.7673]
[1719536163520,6.765,147.82,147.78,15.44]
[1719536164114,6.765,147.82,147.79,15.44]
[1719536165721,6.7655,147.81,147.76,15.44]
[1719536166297,6.7663,147.79,147.74,22.9737]
[1719536166603,6.7663,147.79,147.74,38.4137]
[1719536167518,6.766,147.8,147.75,15.44]
[1719536170820,6.766,147.8,147.74,22.9737]
[1719536171120,6.7663,147.79,147.75,15.44]
[1719536171526,6.7663,147.79,147.74,38.4137]
[1719536171924,16.057,147.82,147.73,6.3177]
[1719536172220,22.2074,147.77,147.73,6.3177]
[1719536174025,22.2074,147.77,147.72,23.6925]
[1719536174216,6.7677,147.76,147.72,16.923]
[1719536174417,6.7673,147.77,147.72,23.6925]
[1719536174628,15.44,147.77,147.72,23.6925]
[1719536175114,22.2069,147.78,147.73,6.769]
[1719536177317,6.7673,147.77,147.72,39.1324]
[1719536178516,22.2069,147.78,147.72,39.1324]
[1719536179345,22.2069,147.78,147.73,6.769]
[1719536180817,6.7664,147.79,147.74,6.7686]
[1719536181031,6.7664,147.79,147.74,22.2086]
[1719536181318,6.7653,147.82,147.77,22.2072]
[1719536182671,6.7641,147.84,147.78,15.44]
[1719536182853,15.44,147.84,147.78,22.2067]
[1719536183790,22.2042,147.84,147.78,22.2067]
[1719536185233,6.7646,147.83,147.78,22.2067]
[1719536185497,22.2046,147.83,147.77,22.2071]
[1719536186495,22.2046,147.83,147.78,6.7667]
[1719536186867,15.44,147.83,147.78,6.7667]
[1719536187693,6.7642,147.84,147.78,6.7667]
[1719536187868,15.44,147.83,147.78,6.7667]
[1719536188568,15.44,147.83,147.78,22.2067]
[1719536195905,6.7642,147.84,147.79,22.2061]
[1719536197512,0.8479656,147.88,147.8,16.914]
[1719536197818,0.8479656,147.88,147.81,22.2051]
[1719536197819,6.7632,147.86,147.81,22.2051]
[1719536198116,16.2879656,147.88,147.81,22.2051]
[1719536198117,6.7629,147.87,147.81,22.2051]
[1719536198617,22.2029,147.87,147.81,22.2051]
[1719536199303,22.2029,147.87,147.82,6.7648]
[1719536199613,22.2029,147.87,147.82,22.2048]
[1719536200616,22.2029,147.87,147.82,6.7648]
[1719536202912,6.7629,147.87,147.82,6.7648]
[1719536203116,22.2029,147.87,147.82,6.7648]
[1719536203621,6.7629,147.87,147.82,15.44]
[1719536205098,15.44,147.85,147.81,6.0075]
[1719536205497,22.2037,147.85,147.81,6.0075]
[1719536207739,6.7637,147.85,147.81,6.0075]
[1719536208525,22.2033,147.86,147.81,6.0075]
[1719536209325,6.7636,147.85,147.81,6.0075]
[1719536210519,22.2032,147.86,147.81,12.7728]
[1719536211124,6.7641,147.84,147.79,16.9154]
[1719536211313,0.8479656,147.88,147.78,6.7663]
[1719536211314,15.44,147.82,147.78,6.7663]
[1719536211515,15.44,147.81,147.77,6.7671]
[1719536211715,15.44,147.81,147.76,45.5575]
[1719536212029,15.44,147.81,147.76,38.7899]
[1719536212834,15.44,147.81,147.77,6.7671]
[1719536213930,16.907,147.87,147.78,6.7666]
[1719536214137,15.44,147.82,147.78,6.7666]
[1719536214516,15.44,147.83,147.78,6.7666]
[1719536214813,22.2046,147.83,147.78,6.7666]
[1719536217339,15.44,147.82,147.78,6.7666]
[1719536218133,22.2051,147.82,147.77,6.7671]
[1719536218820,15.44,147.81,147.77,6.7671]
[1719536219234,15.44,147.81,147.76,45.5574]
[1719536220847,22.2055,147.81,147.76,45.5574]
[1719536221543,15.44,147.84,147.76,21.8715]
[1719536221745,15.44,147.78,147.73,23.6911]
[1719536221939,22.2072,147.78,147.73,16.9221]
[1719536222142,22.2072,147.78,147.73,23.6911]
[1719536223048,15.44,147.78,147.73,23.6911]
[1719536223427,15.44,147.78,147.74,6.7685]
[1719536224048,15.44,147.78,147.75,6.7681]
[1719536224750,15.44,147.79,147.75,6.7681]
[1719536225963,22.2063,147.79,147.74,6.7685]
[1719536226528,15.44,147.78,147.74,6.7685]
[1719536228341,22.2069,147.78,147.73,16.9221]
[1719536229741,22.2069,147.78,147.73,23.6911]
[1719536230186,22.2069,147.78,147.73,16.9221]
[1719536230187,15.44,147.78,147.73,16.9221]
[1719536230663,33.3313,147.83,147.73,16.9221]
[1719536230873,15.44,147.79,147.73,32.3621]
[1719536231967,22.2064,147.79,147.74,6.7684]
[1719536232571,15.44,147.78,147.74,6.7684]
[1719536235273,15.44,147.78,147.73,16.9221]
[1719536235274,15.44,147.76,147.73,23.6911]
[1719536239277,15.44,147.77,147.73,23.6911]
[1719536241268,15.44,147.77,147.74,6.7686]
[1719536241575,6.7665,147.79,147.74,6.7686]
[1719536241784,15.44,147.78,147.74,6.7686]
[1719536242076,15.44,147.78,147.75,6.7681]
[1719536242492,15.44,147.79,147.75,6.7681]
[1719536242886,22.2063,147.79,147.74,6.7684]
[1719536243358,15.44,147.76,147.7,16.9255]
[1719536243565,15.44,147.73,147.68,21.42]
[1719536243868,15.44,147.77,147.67,15.44]
[1719536243869,15.44,147.7,147.67,16.9288]
[1719536244064,15.44,147.7,147.67,23.7003]
[1719536244466,15.44,147.71,147.67,23.7003]
[1719536245481,15.44,147.71,147.68,6.771]
[1719536246479,15.44,147.72,147.68,6.771]
[1719536247384,6.7695,147.72,147.67,23.7005]
[1719536247566,15.44,147.71,147.67,23.7005]
[1719536248082,15.44,147.71,147.68,6.7713]
[1719536251680,15.44,147.72,147.68,6.7713]
[1719536251984,6.7691,147.73,147.69,16.9269]
[1719536251985,15.44,147.73,147.69,16.9269]
[1719536252173,6.7685,147.75,147.7,6.7704]
[1719536252377,15.44,147.73,147.7,6.7704]
[1719536252576,15.44,147.73,147.69,23.6977]
[1719536257995,15.44,147.73,147.69,16.9269]
[1719536258293,22.2092,147.73,147.69,16.9269]
[1719536259292,22.2092,147.73,147.68,6.7712]
[1719536261885,6.7687,147.74,147.69,6.7708]
[1719536265309,6.7691,147.73,147.68,39.1391]
[1719536271487,22.2088,147.74,147.69,6.7709]
[1719536272699,6.7691,147.73,147.68,39.1391]
[1719536274515,6.7682,147.75,147.7,6.7703]
[1719536274715,15.44,147.78,147.72,15.44]
[1719536275013,6.7684,147.75,147.72,15.44]
[1719536275213,6.7684,147.75,147.71,15.44]
[1719536275214,6.7682,147.75,147.71,15.44]
[1719536276318,6.7678,147.76,147.71,22.2099]
[1719536277316,6.7683,147.75,147.7,39.1362]
[1719536277919,22.2078,147.76,147.71,6.77]
[1719536278617,6.7678,147.76,147.71,6.77]
[1719536278796,6.7677,147.76,147.72,22.2095]
[1719536279398,6.7674,147.77,147.72,22.2095]
[1719536279807,6.7674,147.77,147.72,6.7695]
[1719536281224,6.7674,147.77,147.73,6.769]
[1719536282007,22.2069,147.78,147.73,6.769]
[1719536286201,15.44,147.78,147.74,6.7685]
[1719536287122,6.7659,147.8,147.75,6.768]
[1719536287315,6.7663,147.79,147.74,39.1296]
[1719536287826,22.2063,147.79,147.74,23.6896]
[1719536288325,22.2063,147.79,147.75,6.7681]
[1719536290226,15.44,147.79,147.75,6.7681]
[1719536291417,22.2063,147.79,147.75,6.7681]
[1719536291928,6.7663,147.79,147.75,6.7681]
[1719536292113,22.2063,147.79,147.75,6.7681]
[1719536292645,16.2186,147.82,147.71,23.6942]
[1719536292829,6.77,147.71,147.66,15.2428]
[1719536293142,15.44,147.7,147.66,15.2428]
[1719536293313,15.44,147.69,147.66,15.2428]
[1719536293512,15.44,147.7,147.66,15.2428]
[1719536293713,15.44,147.7,147.66,22.0146]
[1719536293923,15.44,147.7,147.66,15.2428]
[1719536294157,6.7692,147.73,147.67,6.7714]
[1719536294347,16.2644,147.76,147.67,6.7714]
[1719536294348,15.44,147.71,147.67,16.9292]
[1719536294639,6.7682,147.75,147.7,6.7703]
[1719536294939,15.44,147.73,147.7,6.7703]
[1719536295532,15.44,147.74,147.7,6.7703]
[1719536295748,22.2087,147.74,147.69,16.9269]
[1719536296616,22.2092,147.73,147.69,16.9269]
[1719536296833,22.2096,147.72,147.67,6.7718]
[1719536297219,15.44,147.72,147.66,47.6127]
[1719536297438,15.44,147.71,147.66,32.1727]
[1719536297743,15.44,147.72,147.66,32.1727]
[1719536298351,15.44,147.72,147.66,47.6127]
[1719536298645,15.44,147.73,147.67,15.44]
[1719536298825,15.44,147.73,147.69,6.7709]
[1719536299026,22.2091,147.73,147.67,15.44]
[1719536299743,22.2091,147.73,147.68,6.7713]
[1719536300533,22.2098,147.72,147.67,6.7717]
[1719536300729,22.211,147.69,147.64,6.7732]
[1719536300936,15.44,147.67,147.63,16.9341]
[1719536301129,22.2118,147.67,147.63,16.9341]
[1719536301545,15.44,147.67,147.63,23.7076]
[1719536302140,15.44,147.67,147.64,6.7731]
[1719536302344,15.44,147.67,147.63,16.9341]
[1719536302345,15.44,147.69,147.65,6.7726]
[1719536302563,22.2109,147.7,147.65,6.7726]
[1719536303656,22.211,147.69,147.64,6.7731]
[1719536304064,22.211,147.69,147.63,39.1476]
[1719536304445,15.44,147.68,147.64,6.773]
[1719536305667,15.44,147.69,147.65,6.7726]
[1719536305870,15.44,147.7,147.66,6.7722]
[1719536306166,6.7696,147.72,147.67,6.7717]
[1719536306467,22.2087,147.74,147.69,6.7709]
[1719536307061,22.2087,147.74,147.68,39.1393]
[1719536307062,6.7692,147.73,147.68,39.1393]
[1719536307463,15.44,147.72,147.64,23.5638]
[1719536307768,15.44,147.72,147.66,15.44]
[1719536308265,15.44,147.72,147.64,30.3369]
[1719536308566,15.44,147.72,147.66,15.44]
[1719536309867,6.7704,147.7,147.66,15.44]
[1719536311550,6.7701,147.71,147.66,22.2122]
[1719536311953,16.2644,147.76,147.67,15.44]
[1719536312159,15.44,147.74,147.68,16.928]
[1719536312663,15.44,147.74,147.68,32.368]
[1719536313252,22.2089,147.74,147.69,6.7708]
[1719536314377,6.7692,147.73,147.68,39.1393]
[1719536315077,6.7684,147.75,147.7,6.7702]
[1719536315256,6.7684,147.75,147.7,22.2102]
[1719536315464,6.7684,147.75,147.71,15.44]
[1719536316183,15.44,147.78,147.72,15.44]
[1719536316384,6.7685,147.75,147.71,15.44]
[1719536316557,6.7685,147.75,147.7,23.696]
[1719536316782,6.7685,147.75,147.71,15.44]
[1719536318711,6.7678,147.76,147.71,22.21]
[1719536320518,6.7677,147.76,147.71,15.44]
[1719536320682,6.7677,147.76,147.72,15.44]
[1719536320885,6.7673,147.77,147.72,15.44]
[1719536322187,6.7673,147.77,147.72,22.2094]
[1719536322590,6.7668,147.78,147.73,6.7687]
[1719536322797,6.7668,147.78,147.73,37.5498]
[1719536324322,16.913,147.82,147.73,37.5498]
[1719536324323,6.7664,147.79,147.74,6.7686]
[1719536324518,6.7664,147.79,147.74,22.2086]
[1719536326124,22.206,147.8,147.75,6.768]
[1719536327028,6.766,147.8,147.75,6.768]
[1719536327193,16.913,147.82,147.74,6.2823]
[1719536327194,15.44,147.79,147.74,6.2823]
[1719536327394,6.7669,147.78,147.74,6.2823]
[1719536327594,22.2069,147.78,147.74,6.2823]
[1719536329538,22.2069,147.78,147.74,13.0509]
[1719536329709,6.7669,147.78,147.74,13.0509]
[1719536330705,22.2064,147.79,147.74,13.0509]
[1719536333537,6.7664,147.79,147.74,13.0509]
[1719536333845,22.2064,147.79,147.74,13.0509]
[1719536337015,22.206,147.8,147.75,6.7681]
[1719536340143,6.766,147.8,147.75,6.7681]
[1719536340328,22.206,147.8,147.75,6.7681]
[1719536341342,15.44,147.8,147.74,21.7223]
[1719536341550,22.2077,147.76,147.73,15.3411]
[1719536342043,15.44,147.76,147.73,15.3411]
[1719536343235,22.2069,147.78,147.73,15.3411]
[1719536343416,22.2069,147.78,147.73,22.11]
[1719536343624,22.2069,147.78,147.73,15.3411]
[1719536343818,6.7664,147.79,147.74,6.7685]
[1719536344024,15.44,147.78,147.75,6.7681]
[1719536345135,15.44,147.78,147.74,23.6898]
[1719536345724,22.2072,147.77,147.73,15.3411]
[1719536346126,16.9127,147.82,147.73,15.3411]
[1719536346127,22.2069,147.78,147.73,22.1101]
[1719536348027,6.7669,147.78,147.74,6.7686]
[1719536348229,15.44,147.78,147.73,32.2632]
[1719536348537,22.206,147.8,147.75,23.6878]
[1719536349447,6.7663,147.79,147.75,23.6878]
[1719536349639,15.44,147.79,147.75,23.6878]
[1719536350345,22.2064,147.79,147.75,16.92]
[1719536350546,15.44,147.79,147.75,23.6881]
[1719536351137,6.766,147.8,147.76,6.7677]
[1719536351332,6.7646,147.83,147.78,6.7667]
[1719536351532,22.2046,147.83,147.78,6.7667]
[1719536352143,6.7649,147.82,147.78,6.7667]
[1719536353134,15.44,147.83,147.78,6.7667]
[1719536353443,22.2046,147.83,147.78,6.7667]
[1719536354728,6.7646,147.83,147.79,6.7663]
[1719536355032,22.2046,147.83,147.79,6.7663]
[1719536355726,22.2046,147.83,147.78,6.7666]
[1719536356551,15.44,147.82,147.78,6.7666]
[1719536358641,22.2046,147.83,147.78,6.7666]
[1719536363132,15.44,147.82,147.78,6.7666]
[1719536365849,22.2046,147.83,147.78,6.7666]
[1719536367469,15.6802,147.87,147.79,16.9155]
[1719536367681,6.7642,147.84,147.79,33.1974]
[1719536367869,22.2042,147.84,147.79,34.55046191]
[1719536368051,22.2042,147.84,147.79,33.1974]
[1719536368576,6.7645,147.83,147.79,39.9636]
[1719536370978,22.4432,147.87,147.82,6.7649]
[1719536371152,22.2037,147.85,147.8,6.7657]
[1719536371352,15.44,147.84,147.8,6.7657]
[1719536371656,15.44,147.84,147.79,16.2819]
[1719536371657,15.44,147.84,147.79,23.0481]
[1719536372851,22.2041,147.84,147.79,23.0481]
[1719536373466,6.7641,147.84,147.79,23.0481]
[1719536373770,22.2041,147.84,147.79,23.0481]
[1719536374786,6.7672,147.78,147.75,36.9368]
[1719536374949,22.2064,147.79,147.75,21.4968]
[1719536375572,22.206,147.8,147.75,28.2648]
[1719536377355,6.766,147.8,147.75,28.2648]
[1719536377556,22.206,147.8,147.75,28.2648]
[1719536378469,22.206,147.8,147.76,6.7677]
[1719536380173,15.44,147.79,147.76,6.7677]
[1719536380350,6.7655,147.81,147.76,6.7677]
[1719536380653,15.44,147.79,147.76,6.7677]
[1719536382660,15.44,147.8,147.76,6.7677]
[1719536383577,6.765,147.82,147.77,6.767]
[1719536383760,15.44,147.81,147.77,6.767]
[1719536384784,6.765,147.82,147.77,6.767]
[1719536384964,15.44,147.81,147.77,6.767]
[1719536394261,6.765,147.82,147.77,6.767]
[1719536394468,22.205,147.82,147.77,6.767]
[1719536398586,6.765,147.82,147.78,6.7667]
[1719536398790,22.205,147.82,147.78,6.7667]
[1719536399396,22.2046,147.83,147.78,6.7667]
[1719536399966,6.7651,147.82,147.77,39.1247]
[1719536400198,6.7651,147.82,147.75,21.4968]
[1719536400199,15.44,147.82,147.75,21.4968]
[1719536400401,65.2166174,147.91,147.76,6.7676]
[1719536400402,22.2055,147.81,147.76,6.7676]
[1719536400707,15.44,147.81,147.76,6.7676]
[1719536400869,22.2057,147.81,147.76,6.7676]
[1719536401079,21.7057,147.81,147.76,6.7676]
[1719536401293,21.7057,147.81,147.77,6.7672]
[1719536401688,14.94,147.81,147.77,6.7672]
[1719536401881,22.2051,147.82,147.77,6.7672]
[1719536402291,6.7646,147.83,147.78,6.7666]
[1719536402465,15.44,147.82,147.78,6.7666]
[1719536402668,22.205,147.82,147.77,23.6848]
[1719536403191,15.44,147.82,147.77,16.9177]
[1719536403375,22.205,147.82,147.77,16.9177]
[1719536403575,6.765,147.82,147.77,23.6848]
[1719536403892,22.205,147.82,147.77,23.6848]
[1719536404468,6.7673,147.77,147.72,6.7694]
[1719536404773,15.44,147.75,147.71,39.4528]
[1719536404987,6.7679,147.76,147.71,39.4528]
[1719536404988,15.44,147.74,147.71,39.4528]
[1719536405196,16.9152,147.8,147.71,6.0961]
[1719536405197,15.44,147.77,147.71,6.0961]
[1719536405377,22.2091,147.73,147.71,6.0961]
[1719536405597,15.44,147.72,147.68,23.6991]
[1719536405901,15.44,147.72,147.68,16.9278]
[1719536406066,15.44,147.72,147.68,23.699]
[1719536406473,15.44,147.74,147.68,32.3678]
[1719536406741,15.44,147.75,147.69,15.44]
[1719536407271,6.7686,147.74,147.69,6.7709]
[1719536407498,15.44,147.74,147.7,16.9255]
[1719536407689,16.9165,147.79,147.71,6.7696]
[1719536407994,15.44,147.76,147.71,6.7696]
[1719536408200,15.44,147.76,147.72,6.7694]
[1719536408988,6.7673,147.77,147.72,6.7694]
[1719536409301,15.44,147.75,147.7,16.9255]
[1719536410378,15.44,147.73,147.7,16.9255]
[1719536412908,15.44,147.73,147.7,23.6959]
[1719536413203,15.44,147.74,147.7,23.6959]
[1719536414805,22.2083,147.75,147.7,23.6959]
[1719536415492,15.44,147.74,147.7,23.6959]
[1719536415692,6.7683,147.75,147.7,23.6959]
[1719536415693,15.44,147.73,147.7,23.6959]
[1719536419084,6.7683,147.75,147.71,6.7699]
[1719536419289,6.7678,147.76,147.71,8.1238525]
[1719536419490,22.2078,147.76,147.71,8.1238525]
[1719536419706,22.2082,147.75,147.7,23.6959]
[1719536420006,15.44,147.74,147.7,23.6959]
[1719536420310,15.44,147.74,147.68,15.44]
[1719536420488,15.44,147.74,147.7,6.7704]
[1719536422518,22.2087,147.74,147.69,23.6976]
[1719536423601,22.2087,147.74,147.7,6.7704]
[1719536423802,15.44,147.74,147.7,6.7704]
[1719536423992,6.7683,147.75,147.7,6.7704]
[1719536424613,6.7686,147.74,147.7,6.7704]
[1719536425117,15.3455,147.76,147.67,16.432]
[1719536425323,6.7706,147.7,147.66,23.0262]
[1719536425492,15.44,147.68,147.66,23.0262]
[1719536426189,15.44,147.7,147.65,6.783]
[1719536426399,22.2123,147.66,147.65,6.783]
[1719536427109,15.44,147.66,147.65,6.783]
[1719536427316,15.44,147.66,147.63,6.783]
[1719536427510,15.44,147.65,147.63,6.783]
[1719536428315,6.7706,147.7,147.65,6.783]
[1719536428637,15.44,147.72,147.67,15.44]
[1719536428919,22.2094,147.73,147.68,6.771]
[1719536430695,6.7694,147.73,147.68,6.771]
[1719536430915,15.44,147.72,147.68,6.771]
[1719536432307,22.2094,147.73,147.68,6.771]
[1719536432833,6.7696,147.72,147.67,39.1408]
[1719536432998,6.7701,147.71,147.67,16.9291]
[1719536433318,22.2101,147.71,147.67,16.9291]
[1719536435024,15.44,147.71,147.67,23.7009]
[1719536435915,15.44,147.68,147.62,6.783]
[1719536436120,149.3035,147.76,147.62,6.783]
[1719536436121,15.44,147.65,147.62,6.783]
[1719536438835,15.44,147.66,147.62,6.783]
[1719536439035,6.7703,147.71,147.66,6.7722]
[1719536439529,22.2103,147.71,147.66,6.7722]
[1719536440615,22.2096,147.72,147.67,6.7717]
[1719536442435,6.77,147.71,147.66,28.8743]
[1719536442638,22.21,147.71,147.66,13.4343]
[1719536443813,33.4822,147.75,147.66,6.6621]
[1719536444027,15.44,147.67,147.65,6.783]
[1719536444224,15.44,147.66,147.65,6.783]
[1719536444737,22.2123,147.66,147.65,6.783]
[1719536445129,15.44,147.66,147.63,6.783]
[1719536445328,15.44,147.65,147.63,13.5566]
[1719536445643,15.44,147.67,147.63,13.5566]
[1719536446613,6.7708,147.7,147.65,6.783]
[1719536446941,6.77,147.71,147.66,6.7722]
[1719536447737,6.7697,147.72,147.66,6.7722]
[1719536447923,6.7701,147.71,147.66,6.7722]
[1719536448133,6.7706,147.7,147.65,6.783]
[1719536449043,16.561,147.75,147.65,6.783]
[1719536449255,16.9251,147.71,147.65,6.783]
[1719536449560,6.771,147.69,147.65,6.783]
[1719536449930,50.766,147.74,147.65,6.783]
[1719536449931,6.7706,147.7,147.65,13.5557]
[1719536450532,6.7714,147.68,147.65,6.783]
[1719536450738,30.89,147.73,147.65,6.783]
[1719536451057,6.771,147.69,147.65,6.783]
[1719536453756,6.7714,147.68,147.64,6.783]
[1719536453959,6.7719,147.67,147.64,6.783]
[1719536454827,6.7723,147.66,147.65,6.783]
[1719536455863,6.773,147.65,147.6,6.783]
[1719536456562,6.773,147.65,147.6,13.5578]
[1719536458170,30.89,147.7,147.62,6.783]
[1719536458331,16.0871,147.73,147.65,6.783]
[1719536458659,6.7712,147.69,147.65,6.783]
[1719536458859,6.7705,147.7,147.65,13.5557]
[1719536459865,16.0871,147.73,147.65,6.783]
[1719536460544,6.7696,147.72,147.67,6.7717]
[1719536460943,6.77,147.71,147.66,23.7025]
[1719536461548,5.2287,147.75,147.66,16.9303]
[1719536461747,6.7693,147.73,147.68,23.6992]
[1719536462358,30.89,147.76,147.66,6.7719]
[1719536462359,6.7697,147.72,147.66,6.7719]
[1719536462552,6.7701,147.71,147.66,6.7719]
[1719536463563,6.769,147.74,147.67,16.9288]
[1719536463867,6.7691,147.73,147.68,6.7713]
[1719536464566,6.7698,147.72,147.67,39.8475]
[1719536464945,6.7692,147.73,147.68,6.7713]
[1719536465157,6.7692,147.73,147.67,33.076]
[1719536465158,16.922,147.74,147.64,23.7156]
[1719536465367,6.7707,147.7,147.65,13.5556]
[1719536468160,16.922,147.74,147.65,6.783]
[1719536468360,30.89,147.73,147.65,6.783]
[1719536468667,6.7709,147.69,147.65,6.783]
[1719536469560,30.89,147.73,147.65,6.783]
[1719536469760,16.922,147.74,147.65,6.783]
[1719536471577,6.7705,147.7,147.65,13.5554]
[1719536471771,6.7709,147.69,147.65,6.783]
[1719536471945,6.7715,147.68,147.65,6.783]
[1719536472449,6.7711,147.69,147.65,6.783]
[1719536474068,6.7719,147.67,147.64,6.783]
[1719536474246,16.9268,147.7,147.64,6.783]
[1719536474445,6.7727,147.65,147.64,6.783]
[1719536474660,6.774,147.63,147.59,22.024]
[1719536474860,6.7733,147.64,147.59,28.7994]
[1719536475261,30.89,147.68,147.6,16.9371]
[1719536475572,16.9264,147.7,147.62,6.7738]
[1719536475573,6.7719,147.67,147.62,6.7738]
[1719536475946,16.9264,147.7,147.6,16.9371]
[1719536476562,6.7728,147.65,147.6,23.7118]
[1719536476976,6.7724,147.66,147.61,6.7745]
[1719536477381,6.7728,147.65,147.6,23.712]
[1719536478049,30.89,147.71,147.62,16.9345]
[1719536478256,6.7727,147.66,147.61,6.7744]
[1719536479180,47.8155,147.71,147.61,16.936]
[1719536479367,47.8155,147.71,147.62,1.35462889]
[1719536479683,6.7718,147.68,147.63,6.7736]
[1719536480057,6.7719,147.67,147.62,8.12862889]
[1719536481820,6.7719,147.67,147.62,6.774]
[1719536483759,6.7723,147.66,147.61,23.7104]
[1719536484081,6.7723,147.66,147.62,6.7741]
[1719536484379,6.7723,147.66,147.61,16.936]
[1719536484569,6.7723,147.66,147.61,23.7105]